Workbook

Sheet Sheet1
B1: Calculations for Table 2/Fig. 10
B3: SKO
B5: POWER IN | D5: additional consumption of 3.74 g chow/day | H5: 3.3 | I5: kCal/g chow | M5: Sampath et al 2009
B6: FOOD INTAKE | D6: 1W = 0.86 kCal/hour | H6: =H5*3.74 -> 12.342 | I6: additional kCal consumed/day
H7: =H6/24 -> 0.51425 | I7: additional kCal consumed/hour/mouse
H8: =H7/0.86 -> 0.5979651163 | I8: additional W consumed/SKO mouse
B10: POWER OUT/W | D10: =(46.2-31.2) -> 15 | E10: kcal/h/kg | F10: INCREASE in SKO | H10: =(46.2-31.2)*0.03 -> 0.45 | I10: W=EE [kcal/h/kg] x 0.03 | M10: Sampath et al 2009
B11: Energy Expenditure | D11: =((46.2/31.2)*100)-100 -> 48.07692308 | E11: % increase in SKO/control
B13: Evaporative Cooling | D13: =49.5-23.7 -> 25.8 | E13: g/m2/h increase in SKO | H13: =D13*0.007 -> 0.1806 | I13: W lost in SKO (compared to control) | M13: this study
B14: EC= g/m2/h | D14: =((49.5-23.7)/23.7)*100 -> 108.8607595 | E14: % increase in water loss
H15: Mice are same size but balding
B20: DGAT1 KO
B22: POWER IN | D22: no change | M22: Smith et al 2000
B23: FOOD INTAKE
B27: POWER OUT/W | D27: 4.17 | E27: kcal/h/kg | F27: INCREASE in DGAT1 KO | H27: =D27*0.03 -> 0.1251 | I27: W=EE [kcal/h/kg] x 0.03 | M27: Smith et al 2000
B28: Energy Expenditure | D28: 22 | E28: % increase in DGAT1 KO/control
B30: Evaporative Cooling | D30: =31-20.2 -> 10.8 | E30: g/m2/h increase in DGAT1 KO | H30: =D30*0.007 -> 0.0756 | I30: W lost in DGAT1 KO (compared to control) | M30: this study
B31: EC= g/m2/h | D31: =(D30/20.2)*100 -> 53.46534653 | E31: % increase in water loss
H32: Mice are same size but hair is thinner
B37: Sdc1 KO
B39: POWER IN | D39: additional consumption of 0.24 g chow/day | H39: 3.3 | I39: kCal/g chow | M39: Kasza et al 2014
B40: FOOD INTAKE | D40: corrected for body weight (Sdc1KO 12% smaller) | H40: =H39*0.24 -> 0.792 | I40: additional kCal consumed/day
H41: =H40/24 -> 0.033 | I41: additional kCal consumed/hour/mouse
H42: =H41/0.86 -> 0.03837209302 | I42: additional W consumed/SKO mouse
B44: POWER OUT/W | D44: =(21.01-18.13) -> 2.88 | E44: kcal/h/kg | F44: INCREASE in Sdc1 KO | H44: =D44*0.03 -> 0.0864 | I44: W=EE [kcal/h/kg] x 0.03 | M44: Kasza et al 2014
B45: Energy Expenditure | D45: =(D44/18.13)*100 -> 15.88527303 | E45: % increase in Sdc1 KO / control
B47: Evaporative Cooling | D47: =33.7-22.5 -> 11.2 | E47: g/m2/h increase in Sdc1 KO | H47: =D47*0.007 -> 0.0784 | I47: W lost in Sdc1 KO (compared to control) | M47: this study
B48: EC= g/m2/h | D48: =(D47/22.5)*100 -> 49.77777778 | E48: % increase in water loss
H49: Sdc1KO mice are 12% smaller, with wild type pelts
B54: Agouti y (obese)
B56: POWER IN | D56: no change | M56: Nelson et al 2011
B57: FOOD INTAKE
B61: POWER OUT/W | D61: =(15.54-15.2) -> 0.34 | E61: kcal/h/kg | F61: DECREASE in Agouti/y | H61: =D61*0.03 -> 0.0102 | I61: W=EE [kcal/h/kg] x 0.03 | M61: Nelson et al 2011
B62: Energy Expenditure | D62: =(D61/15.54)*100 -> 2.187902188 | E62: % increase in SKO/control
B64: Evaporative Cooling | D64: =23.4-17.01 -> 6.39 | E64: g/m2/h decrease in Agouti/y | I64: corrected for larger surface area of Agouti/y mouse | M64: this study
B65: EC= g/m2/h | D65: =(D64/23.4)*100 -> 27.30769231 | E65: % decrease of EC/area of skin in Ag/y mice | I65: 0.0105 surface area of 21g mouse + limbs/ears
I66: 0.0130 surface area of 27 g mouse + limbs/ears
H68: =23.4*0.0105*0.667 -> 0.1638819 | I68: W lost in control mice
H69: =17*0.013*0.667 -> 0.147407 | I69: W lost in Agouti/y mice
H70: =H68-H69 -> 0.0164749 | I70: W not lost to evaporative cooling in Agouti/y mice (compared to control)
